[Event "Late-Titled-Tuesday-Blitz-June-25-2024"]
[Site "Chess.com"]
[Date "2024.06.25"]
[Round "5"]
[White "dolynachess"]
[Black "Patolindo"]
[Result "1-0"]
[WhiteElo "2527"]
[BlackElo "2164"]
[TimeControl "180+1"]
[EndTime "14:54:00 PDT"]
[Termination "dolynachess won on time"]

1. d4 {[%clk 0:03:00.9]} 1... Nf6 {[%clk 0:02:58.2]} 2. c4 {[%clk 0:03:01.2]}
2... g6 {[%clk 0:02:58.2]} 3. Nc3 {[%clk 0:03:00.6]} 3... d5 {[%clk 0:02:58.6]}
4. cxd5 {[%clk 0:03:01.5]} 4... Nxd5 {[%clk 0:02:59.1]} 5. e4 {[%clk 0:03:02.3]}
5... Nxc3 {[%clk 0:02:59.5]} 6. bxc3 {[%clk 0:03:03.1]} 6... Bg7 {[%clk
0:03:00.1]} 7. Bc4 {[%clk 0:03:03.7]} 7... c5 {[%clk 0:03:00.5]} 8. Ne2 {[%clk
0:03:04.4]} 8... Qc7 {[%clk 0:03:01]} 9. Bb3 {[%clk 0:02:53.4]} 9... O-O {[%clk
0:03:00]} 10. h4 {[%clk 0:02:49.5]} 10... Rd8 {[%clk 0:02:56.2]} 11. h5 {[%clk
0:02:47.3]} 11... Bg4 {[%clk 0:02:55.7]} 12. hxg6 {[%clk 0:02:40.9]} 12... hxg6
{[%clk 0:02:52.2]} 13. f3 {[%clk 0:02:40.5]} 13... Bd7 {[%clk 0:02:49.4]} 14.
Be3 {[%clk 0:02:28.2]} 14... Bb5 {[%clk 0:02:49]} 15. Bxf7+ {[%clk 0:02:16.4]}
15... Kxf7 {[%clk 0:02:40.7]} 16. Qb3+ {[%clk 0:02:15.4]} 16... Kf8 {[%clk
0:02:37.4]} 17. Qxb5 {[%clk 0:02:15.1]} 17... cxd4 {[%clk 0:02:37.5]} 18. cxd4
{[%clk 0:02:15]} 18... Nc6 {[%clk 0:02:34.4]} 19. Rd1 {[%clk 0:02:04.2]} 19...
e5 {[%clk 0:02:25.2]} 20. d5 {[%clk 0:01:55.3]} 20... Nd4 {[%clk 0:02:25.3]} 21.
Qb4+ {[%clk 0:01:37.1]} 21... Kg8 {[%clk 0:02:20.7]} 22. Nxd4 {[%clk 0:01:37]}
22... exd4 {[%clk 0:02:20.8]} 23. Bxd4 {[%clk 0:01:37.3]} 23... a5 {[%clk
0:02:17.8]} 24. Qb2 {[%clk 0:01:32.4]} 24... Qg3+ {[%clk 0:02:07.5]} 25. Kf1
{[%clk 0:01:32]} 25... Rf8 {[%clk 0:01:43.4]} 26. Rh3 {[%clk 0:01:05.7]} 26...
Qc7 {[%clk 0:01:00.4]} 27. Bxg7 {[%clk 0:01:04.3]} 27... Qxg7 {[%clk 0:01:01.3]}
28. Qxg7+ {[%clk 0:01:04]} 28... Kxg7 {[%clk 0:01:02]} 29. Rb1 {[%clk
0:01:01.8]} 29... Rf7 {[%clk 0:00:57.6]} 30. Ke2 {[%clk 0:00:58.7]} 30... Rc8
{[%clk 0:00:58.1]} 31. Kd3 {[%clk 0:00:58.1]} 31... Kf6 {[%clk 0:00:52.5]} 32.
f4 {[%clk 0:00:55.1]} 32... Rc5 {[%clk 0:00:48.1]} 33. Rb6+ {[%clk 0:00:46.2]}
33... Kg7 {[%clk 0:00:47.3]} 34. Rg3 {[%clk 0:00:44]} 34... Rc1 {[%clk
0:00:43.5]} 35. Rgxg6+ {[%clk 0:00:43.3]} 35... Kf8 {[%clk 0:00:39.8]} 36. Rgf6
{[%clk 0:00:42.3]} 36... Rd1+ {[%clk 0:00:31.9]} 37. Ke3 {[%clk 0:00:41.2]} 1-0

[Event "Late-Titled-Tuesday-Blitz-June-25-2024"]
[Site "Chess.com"]
[Date "2024.06.25"]
[Round "5"]
[White "SimplyDevina"]
[Black "VaglioSagan"]
[Result "0-1"]
[WhiteElo "2331"]
[BlackElo "2553"]
[TimeControl "180+1"]
[EndTime "14:54:01 PDT"]
[Termination "VaglioSagan won by resignation"]

1. d4 {[%clk 0:03:00.9]} 1... d5 {[%clk 0:02:55.7]} 2. c4 {[%clk 0:02:58]} 2...
c6 {[%clk 0:02:54.7]} 3. Nc3 {[%clk 0:02:57.1]} 3... Nf6 {[%clk 0:02:54.6]} 4.
cxd5 {[%clk 0:02:55.4]} 4... cxd5 {[%clk 0:02:55.5]} 5. Bf4 {[%clk 0:02:54.4]}
5... Nc6 {[%clk 0:02:56]} 6. e3 {[%clk 0:02:53.9]} 6... a6 {[%clk 0:02:56.3]} 7.
Bd3 {[%clk 0:02:52.3]} 7... Bg4 {[%clk 0:02:51.5]} 8. Nge2 {[%clk 0:02:32.4]}
8... e6 {[%clk 0:02:49.1]} 9. h3 {[%clk 0:02:30.9]} 9... Bh5 {[%clk 0:02:48.5]}
10. O-O {[%clk 0:02:26.9]} 10... Be7 {[%clk 0:02:48]} 11. Rc1 {[%clk 0:02:23.9]}
11... O-O {[%clk 0:02:48]} 12. Qd2 {[%clk 0:02:12.9]} 12... Rc8 {[%clk
0:02:37.2]} 13. Bh2 {[%clk 0:01:45.2]} 13... Bg6 {[%clk 0:02:30.2]} 14. Nf4
{[%clk 0:01:35.2]} 14... b5 {[%clk 0:02:16]} 15. Bxg6 {[%clk 0:01:33.1]} 15...
hxg6 {[%clk 0:02:14.7]} 16. Nd3 {[%clk 0:01:21.7]} 16... Qb6 {[%clk 0:01:55.2]}
17. a3 {[%clk 0:01:06.9]} 17... Na5 {[%clk 0:01:36.2]} 18. Be5 {[%clk
0:00:44.4]} 18... Nb3 {[%clk 0:01:29.8]} 19. Qe2 {[%clk 0:00:39.2]} 19... Nxc1
{[%clk 0:01:29.4]} 20. Rxc1 {[%clk 0:00:39.6]} 20... Ne4 {[%clk 0:01:22.7]} 21.
Qg4 {[%clk 0:00:09.6]} 21... Nxc3 {[%clk 0:00:57.6]} 22. bxc3 {[%clk 0:00:10.5]}
22... Bxa3 {[%clk 0:00:57.4]} 23. Rb1 {[%clk 0:00:08.5]} 23... Rxc3 {[%clk
0:00:57]} 24. Nf4 {[%clk 0:00:08.9]} 24... Bd6 {[%clk 0:00:55.9]} 25. Nxe6
{[%clk 0:00:06.3]} 25... Bxe5 {[%clk 0:00:50.8]} 26. Nxf8 {[%clk 0:00:06.1]}
26... Bd6 {[%clk 0:00:22.5]} 27. Nd7 {[%clk 0:00:06]} 27... Qc7 {[%clk
0:00:22.6]} 28. Ne5 {[%clk 0:00:03.2]} 28... Bxe5 {[%clk 0:00:21]} 29. dxe5
{[%clk 0:00:04.1]} 29... Qxe5 {[%clk 0:00:20.7]} 30. Ra1 {[%clk 0:00:04.5]}
30... Rc4 {[%clk 0:00:16.8]} 0-1

[Event "Late-Titled-Tuesday-Blitz-June-25-2024"]
[Site "Chess.com"]
[Date "2024.06.25"]
[Round "5"]
[White "sergeikim"]
[Black "jaramsdal"]
[Result "1-0"]
[WhiteElo "2605"]
[BlackElo "2433"]
[TimeControl "180+1"]
[EndTime "14:54:05 PDT"]
[Termination "sergeikim won on time"]

1. d4 {[%clk 0:03:00.9]} 1... Nf6 {[%clk 0:02:57.5]} 2. c4 {[%clk 0:03:00.5]}
2... g6 {[%clk 0:02:57.5]} 3. Nc3 {[%clk 0:03:00.4]} 3... d5 {[%clk 0:02:58.1]}
4. cxd5 {[%clk 0:02:59.9]} 4... Nxd5 {[%clk 0:02:59]} 5. e4 {[%clk 0:02:59.9]}
5... Nxc3 {[%clk 0:02:59.5]} 6. bxc3 {[%clk 0:03:00]} 6... c5 {[%clk 0:02:59.6]}
7. Bc4 {[%clk 0:02:59.6]} 7... Bg7 {[%clk 0:02:57.9]} 8. Ne2 {[%clk 0:02:59.6]}
8... Nc6 {[%clk 0:02:58.1]} 9. Be3 {[%clk 0:02:59.6]} 9... O-O {[%clk 0:02:54]}
10. O-O {[%clk 0:02:58.1]} 10... Bg4 {[%clk 0:02:47.1]} 11. f3 {[%clk
0:02:57.8]} 11... Na5 {[%clk 0:02:41.6]} 12. Bd3 {[%clk 0:02:57.1]} 12... cxd4
{[%clk 0:02:30.9]} 13. cxd4 {[%clk 0:02:58]} 13... Be6 {[%clk 0:02:31.3]} 14.
Qd2 {[%clk 0:02:57.7]} 14... Nc4 {[%clk 0:02:27.8]} 15. Bxc4 {[%clk 0:02:57.8]}
15... Bxc4 {[%clk 0:02:28.7]} 16. Rfd1 {[%clk 0:02:57.6]} 16... b5 {[%clk
0:02:13.3]} 17. Ng3 {[%clk 0:02:57.4]} 17... Re8 {[%clk 0:01:34.6]} 18. Bh6
{[%clk 0:02:57.1]} 18... Bh8 {[%clk 0:01:34.7]} 19. e5 {[%clk 0:02:40.5]} 19...
Qd5 {[%clk 0:01:29.4]} 20. Qf4 {[%clk 0:02:31]} 20... Bxa2 {[%clk 0:01:12.9]}
21. Nf5 {[%clk 0:02:28]} 21... Bb3 {[%clk 0:00:59.7]} 22. Rd3 {[%clk 0:02:05.2]}
22... Bc4 {[%clk 0:00:58.4]} 23. Rdd1 {[%clk 0:02:01.4]} 23... f6 {[%clk
0:00:54.7]} 24. Ne3 {[%clk 0:01:48]} 24... fxe5 {[%clk 0:00:53.7]} 25. Qg5
{[%clk 0:01:35.1]} 25... Qe6 {[%clk 0:00:49]} 26. d5 {[%clk 0:01:34.4]} 26...
Qf6 {[%clk 0:00:42.9]} 27. Qg3 {[%clk 0:01:31.2]} 27... e4 {[%clk 0:00:38.5]}
28. fxe4 {[%clk 0:01:17.1]} 28... Qb6 {[%clk 0:00:31.1]} 29. Rab1 {[%clk
0:01:14.7]} 29... Qd6 {[%clk 0:00:19.5]} 30. Bf4 {[%clk 0:01:01.6]} 30... Qc5
{[%clk 0:00:19.6]} 31. Kh1 {[%clk 0:00:59.4]} 31... Rac8 {[%clk 0:00:18.3]} 32.
Ng4 {[%clk 0:00:59.1]} 32... h5 {[%clk 0:00:15]} 33. Ne5 {[%clk 0:00:57.8]}
33... Bxe5 {[%clk 0:00:13.7]} 34. Bxe5 {[%clk 0:00:57.3]} 34... Kh7 {[%clk
0:00:13.8]} 35. Qg5 {[%clk 0:00:52.8]} 35... Qf2 {[%clk 0:00:08.4]} 36. Bf4
{[%clk 0:00:48.3]} 36... Qb6 {[%clk 0:00:02.9]} 37. d6 {[%clk 0:00:45.1]} 37...
Bf7 {[%clk 0:00:02]} 38. Qh6+ {[%clk 0:00:43.1]} 38... Kg8 {[%clk 0:00:02.1]}
39. Be5 {[%clk 0:00:43.3]} 1-0

[Event "Late-Titled-Tuesday-Blitz-June-25-2024"]
[Site "Chess.com"]
[Date "2024.06.25"]
[Round "5"]
[White "cthulhuuu"]
[Black "ValeriyGrinev"]
[Result "0-1"]
[WhiteElo "2380"]
[BlackElo "2591"]
[TimeControl "180+1"]
[EndTime "14:54:06 PDT"]
[Termination "ValeriyGrinev won by checkmate"]

1. e4 {[%clk 0:02:59.9]} 1... c6 {[%clk 0:02:57.5]} 2. d3 {[%clk 0:02:57.8]}
2... d5 {[%clk 0:02:58.4]} 3. Nd2 {[%clk 0:02:58.3]} 3... e5 {[%clk 0:02:50.5]}
4. Ngf3 {[%clk 0:02:58.3]} 4... Bd6 {[%clk 0:02:50.3]} 5. d4 {[%clk 0:02:55.7]}
5... exd4 {[%clk 0:02:46.1]} 6. exd5 {[%clk 0:02:55.7]} 6... Nf6 {[%clk
0:02:38]} 7. dxc6 {[%clk 0:02:55.4]} 7... Nxc6 {[%clk 0:02:35.3]} 8. Nb3 {[%clk
0:02:54.5]} 8... O-O {[%clk 0:02:26.1]} 9. Be2 {[%clk 0:02:51.4]} 9... Re8
{[%clk 0:02:21.3]} 10. O-O {[%clk 0:02:50.7]} 10... Bc7 {[%clk 0:02:00.8]} 11.
Nbxd4 {[%clk 0:02:44.2]} 11... Nxd4 {[%clk 0:01:58.6]} 12. Nxd4 {[%clk
0:02:39.2]} 12... Qd6 {[%clk 0:01:54]} 13. g3 {[%clk 0:02:38.4]} 13... Bh3
{[%clk 0:01:50.8]} 14. Bf4 {[%clk 0:02:32]} 14... Qb6 {[%clk 0:01:40.5]} 15.
Bxc7 {[%clk 0:02:23.4]} 15... Qxc7 {[%clk 0:01:41.4]} 16. Re1 {[%clk 0:02:23.7]}
16... Rad8 {[%clk 0:01:29.7]} 17. c3 {[%clk 0:02:23.7]} 17... Qd6 {[%clk
0:01:10]} 18. Bb5 {[%clk 0:02:15.4]} 18... Rxe1+ {[%clk 0:01:06.7]} 19. Qxe1
{[%clk 0:02:16.3]} 19... Qd5 {[%clk 0:01:05.9]} 20. Bf1 {[%clk 0:02:14.9]} 20...
Re8 {[%clk 0:01:04]} 21. Bxh3 {[%clk 0:01:52.1]} 21... Rxe1+ {[%clk 0:01:01.9]}
22. Rxe1 {[%clk 0:01:52.9]} 22... g6 {[%clk 0:01:01.1]} 23. Re7 {[%clk
0:01:34.7]} 23... Qxa2 {[%clk 0:00:59.1]} 24. Rxb7 {[%clk 0:01:34.7]} 24... Qb1+
{[%clk 0:00:57.3]} 25. Bf1 {[%clk 0:01:27.5]} 25... Ne4 {[%clk 0:00:54.9]} 26.
Kg2 {[%clk 0:00:39.8]} 26... Nxc3 {[%clk 0:00:50.5]} 27. Rd7 {[%clk 0:00:13.6]}
27... Qxb2 {[%clk 0:00:47.1]} 28. Bc4 {[%clk 0:00:12.3]} 28... Nd1 {[%clk
0:00:46]} 29. Bxf7+ {[%clk 0:00:11.5]} 29... Kh8 {[%clk 0:00:44]} 30. Ne6 {[%clk
0:00:10.5]} 30... Qxf2+ {[%clk 0:00:41.6]} 31. Kh3 {[%clk 0:00:11]} 31... Qf1+
{[%clk 0:00:39.6]} 32. Kh4 {[%clk 0:00:09.6]} 32... Qf6+ {[%clk 0:00:37.8]} 33.
Kh3 {[%clk 0:00:10]} 33... Qf5+ {[%clk 0:00:35.7]} 34. Kg2 {[%clk 0:00:09.6]}
34... Ne3+ {[%clk 0:00:32.9]} 35. Kg1 {[%clk 0:00:05.9]} 35... Qf1# {[%clk
0:00:32.1]} 0-1

[Event "Late-Titled-Tuesday-Blitz-June-25-2024"]
[Site "Chess.com"]
[Date "2024.06.25"]
[Round "5"]
[White "Sondremelaa"]
[Black "norwaytoadog"]
[Result "1-0"]
[WhiteElo "2585"]
[BlackElo "2373"]
[TimeControl "180+1"]
[EndTime "14:54:07 PDT"]
[Termination "Sondremelaa won on time"]

1. e4 {[%clk 0:02:56.4]} 1... c5 {[%clk 0:02:59.1]} 2. Nf3 {[%clk 0:02:56.1]}
2... Nc6 {[%clk 0:02:59.4]} 3. d4 {[%clk 0:02:56.7]} 3... cxd4 {[%clk
0:02:59.6]} 4. Nxd4 {[%clk 0:02:57.6]} 4... e5 {[%clk 0:02:59.9]} 5. Nb5 {[%clk
0:02:55.6]} 5... d6 {[%clk 0:03:00.1]} 6. N1c3 {[%clk 0:02:55.3]} 6... a6 {[%clk
0:02:59.1]} 7. Na3 {[%clk 0:02:55.7]} 7... Be7 {[%clk 0:02:59.7]} 8. Nc4 {[%clk
0:02:54.9]} 8... b5 {[%clk 0:02:59.9]} 9. Ne3 {[%clk 0:02:46.6]} 9... Nf6 {[%clk
0:03:00.2]} 10. Ned5 {[%clk 0:02:44.2]} 10... Be6 {[%clk 0:02:49.6]} 11. Be2
{[%clk 0:02:40.4]} 11... O-O {[%clk 0:02:45.4]} 12. O-O {[%clk 0:02:39.3]} 12...
b4 {[%clk 0:02:39.4]} 13. Nxf6+ {[%clk 0:02:36.7]} 13... Bxf6 {[%clk 0:02:38.8]}
14. Nd5 {[%clk 0:02:37.3]} 14... Bg5 {[%clk 0:02:27]} 15. Bc4 {[%clk 0:02:23.7]}
15... Rc8 {[%clk 0:02:22.2]} 16. Bxa6 {[%clk 0:02:17.7]} 16... Ra8 {[%clk
0:02:14.7]} 17. Bxg5 {[%clk 0:02:07.4]} 17... Qxg5 {[%clk 0:02:07.4]} 18. Bb7
{[%clk 0:02:04.2]} 18... Nd4 {[%clk 0:01:58]} 19. Bxa8 {[%clk 0:01:59.2]} 19...
Bh3 {[%clk 0:01:56.2]} 20. Ne3 {[%clk 0:01:48]} 20... Rxa8 {[%clk 0:01:51]} 21.
Kh1 {[%clk 0:01:47.4]} 21... Be6 {[%clk 0:01:47.9]} 22. c3 {[%clk 0:01:47.3]}
22... Nb5 {[%clk 0:01:41.3]} 23. cxb4 {[%clk 0:01:40.3]} 23... h5 {[%clk
0:01:37.7]} 24. a4 {[%clk 0:01:36.5]} 24... Nd4 {[%clk 0:01:37.4]} 25. b5 {[%clk
0:01:31.5]} 25... h4 {[%clk 0:01:07.2]} 26. h3 {[%clk 0:01:29.2]} 26... Qf4
{[%clk 0:01:07.1]} 27. Nf5 {[%clk 0:01:20.9]} 27... Qxe4 {[%clk 0:00:50.5]} 28.
Nxd4 {[%clk 0:01:16.4]} 28... exd4 {[%clk 0:00:46.1]} 29. Re1 {[%clk 0:01:16.7]}
29... Qf4 {[%clk 0:00:42.8]} 30. Qf3 {[%clk 0:01:15.9]} 30... Qxf3 {[%clk
0:00:35.9]} 31. gxf3 {[%clk 0:01:16.8]} 31... Bd5 {[%clk 0:00:35.8]} 32. b6
{[%clk 0:01:15.8]} 32... Bxf3+ {[%clk 0:00:35]} 33. Kg1 {[%clk 0:01:16.5]} 33...
Ra5 {[%clk 0:00:29.4]} 34. Re8+ {[%clk 0:01:09.1]} 34... Kh7 {[%clk 0:00:29]}
35. b4 {[%clk 0:01:07.8]} 35... Rg5+ {[%clk 0:00:26.8]} 36. Kf1 {[%clk
0:01:07.9]} 36... d3 {[%clk 0:00:22.4]} 37. Ra2 {[%clk 0:00:55.5]} 37... Rg2
{[%clk 0:00:19.7]} 38. Ke1 {[%clk 0:00:52.8]} 38... Rg1+ {[%clk 0:00:16.3]} 39.
Kd2 {[%clk 0:00:52.9]} 39... Rd1+ {[%clk 0:00:16.2]} 40. Kc3 {[%clk 0:00:53.4]}
40... Rc1+ {[%clk 0:00:09]} 41. Kxd3 {[%clk 0:00:52.9]} 41... Rd1+ {[%clk
0:00:08.4]} 42. Ke3 {[%clk 0:00:52.1]} 42... Re1+ {[%clk 0:00:08]} 43. Kxf3
{[%clk 0:00:52.7]} 43... Rxe8 {[%clk 0:00:08.2]} 44. a5 {[%clk 0:00:53.2]} 1-0

[Event "Late-Titled-Tuesday-Blitz-June-25-2024"]
[Site "Chess.com"]
[Date "2024.06.25"]
[Round "5"]
[White "Mackster23"]
[Black "LiemLe"]
[Result "0-1"]
[WhiteElo "2680"]
[BlackElo "3032"]
[TimeControl "180+1"]
[EndTime "14:54:10 PDT"]
[Termination "LiemLe won by resignation"]

1. e4 {[%clk 0:03:00.9]} 1... c5 {[%clk 0:02:59.8]} 2. Nf3 {[%clk 0:03:00.8]}
2... d6 {[%clk 0:02:59.8]} 3. d4 {[%clk 0:03:01.4]} 3... cxd4 {[%clk 0:03:00.7]}
4. Nxd4 {[%clk 0:03:01.9]} 4... Nf6 {[%clk 0:03:01.4]} 5. Nc3 {[%clk 0:03:02.4]}
5... a6 {[%clk 0:03:02.2]} 6. Be3 {[%clk 0:03:02.3]} 6... e5 {[%clk 0:03:02.6]}
7. Nb3 {[%clk 0:03:02.6]} 7... Be7 {[%clk 0:03:02.9]} 8. Be2 {[%clk 0:03:03.2]}
8... Be6 {[%clk 0:03:02.2]} 9. O-O {[%clk 0:03:03.3]} 9... O-O {[%clk
0:03:02.2]} 10. Bf3 {[%clk 0:03:03.9]} 10... Nbd7 {[%clk 0:02:52.9]} 11. a4
{[%clk 0:03:03.5]} 11... Qc7 {[%clk 0:02:50.9]} 12. a5 {[%clk 0:03:03.5]} 12...
Rfc8 {[%clk 0:02:51.5]} 13. Re1 {[%clk 0:03:00.8]} 13... h6 {[%clk 0:02:50.4]}
14. h3 {[%clk 0:03:00.4]} 14... Bd8 {[%clk 0:01:55]} 15. Nd2 {[%clk 0:02:29.1]}
15... Qc6 {[%clk 0:01:33.9]} 16. Nf1 {[%clk 0:02:19.2]} 16... b6 {[%clk
0:01:34]} 17. axb6 {[%clk 0:02:12]} 17... Nxb6 {[%clk 0:01:28.6]} 18. Bc1 {[%clk
0:01:47.5]} 18... Nc4 {[%clk 0:01:12.9]} 19. b3 {[%clk 0:01:37.8]} 19... Ba5
{[%clk 0:01:08.8]} 20. Qd3 {[%clk 0:01:14.5]} 20... Bb4 {[%clk 0:00:54.2]} 21.
Rd1 {[%clk 0:00:50.2]} 21... Nb6 {[%clk 0:00:28.2]} 22. Na4 {[%clk 0:00:50.5]}
22... Nxa4 {[%clk 0:00:23.8]} 23. Rxa4 {[%clk 0:00:51.4]} 23... a5 {[%clk
0:00:24.4]} 24. Ne3 {[%clk 0:00:51.6]} 24... Nd7 {[%clk 0:00:20.7]} 25. Ra2
{[%clk 0:00:32]} 25... Nc5 {[%clk 0:00:20.8]} 26. Qxd6 {[%clk 0:00:10.7]} 26...
Qxd6 {[%clk 0:00:19.5]} 27. Rxd6 {[%clk 0:00:11.6]} 27... Nxb3 {[%clk
0:00:20.2]} 28. Rxe6 {[%clk 0:00:02.5]} 28... Nxc1 {[%clk 0:00:20.5]} 29. Ra1
{[%clk 0:00:01.5]} 29... fxe6 {[%clk 0:00:20.7]} 30. Rxc1 {[%clk 0:00:01.8]}
30... Bd2 {[%clk 0:00:21.4]} 31. Rd1 {[%clk 0:00:01.6]} 31... Bxe3 {[%clk
0:00:22]} 32. fxe3 {[%clk 0:00:02.2]} 32... Rxc2 {[%clk 0:00:22]} 33. Bg4 {[%clk
0:00:02.8]} 33... Rc6 {[%clk 0:00:20.9]} 34. Ra1 {[%clk 0:00:02.6]} 34... a4
{[%clk 0:00:21.3]} 35. Be2 {[%clk 0:00:02.2]} 35... a3 {[%clk 0:00:21.7]} 0-1

[Event "Late-Titled-Tuesday-Blitz-June-25-2024"]
[Site "Chess.com"]
[Date "2024.06.25"]
[Round "5"]
[White "vi_pranav"]
[Black "h4parah5"]
[Result "1-0"]
[WhiteElo "3056"]
[BlackElo "2967"]
[TimeControl "180+1"]
[EndTime "14:54:13 PDT"]
[Termination "vi_pranav won by resignation"]

1. e4 {[%clk 0:03:00.9]} 1... c5 {[%clk 0:02:59.5]} 2. Nf3 {[%clk 0:03:00.2]}
2... Nc6 {[%clk 0:02:59.5]} 3. Bb5 {[%clk 0:02:59.4]} 3... e6 {[%clk 0:02:57]}
4. Bxc6 {[%clk 0:02:58.2]} 4... bxc6 {[%clk 0:02:57]} 5. d3 {[%clk 0:02:58.6]}
5... Ne7 {[%clk 0:02:54.7]} 6. O-O {[%clk 0:02:58.6]} 6... Ng6 {[%clk
0:02:51.8]} 7. Ng5 {[%clk 0:02:58.6]} 7... f6 {[%clk 0:02:48.5]} 8. Nh3 {[%clk
0:02:56.2]} 8... d5 {[%clk 0:02:48]} 9. Nc3 {[%clk 0:02:55.5]} 9... e5 {[%clk
0:02:44.3]} 10. Qh5 {[%clk 0:02:51.7]} 10... d4 {[%clk 0:01:59.2]} 11. Ne2
{[%clk 0:02:48.7]} 11... Qd7 {[%clk 0:01:59.1]} 12. f3 {[%clk 0:02:32.8]} 12...
Bd6 {[%clk 0:01:50.4]} 13. b3 {[%clk 0:02:30.5]} 13... O-O {[%clk 0:01:47.3]}
14. Ng3 {[%clk 0:02:29.1]} 14... Ne7 {[%clk 0:01:25.6]} 15. f4 {[%clk 0:02:25]}
15... Qg4 {[%clk 0:01:18.2]} 16. f5 {[%clk 0:02:12.9]} 16... Qxh5 {[%clk
0:01:16.4]} 17. Nxh5 {[%clk 0:02:13.8]} 17... g6 {[%clk 0:01:15]} 18. fxg6
{[%clk 0:02:09.2]} 18... hxg6 {[%clk 0:01:15.2]} 19. Nxf6+ {[%clk 0:02:05.2]}
19... Kg7 {[%clk 0:01:14]} 20. Bg5 {[%clk 0:02:04.8]} 20... Bxh3 {[%clk
0:01:04.4]} 21. gxh3 {[%clk 0:02:05.7]} 21... Rf7 {[%clk 0:01:04.4]} 22. Ng4
{[%clk 0:01:56.1]} 22... Ng8 {[%clk 0:01:04.3]} 23. Rxf7+ {[%clk 0:01:36.1]}
23... Kxf7 {[%clk 0:01:05.2]} 24. Rf1+ {[%clk 0:01:20.9]} 24... Ke6 {[%clk
0:01:04.6]} 25. Nh6 {[%clk 0:01:21.3]} 25... Be7 {[%clk 0:01:03.3]} 26. Bxe7
{[%clk 0:01:15]} 26... Nxh6 {[%clk 0:00:50.2]} 27. Bxc5 {[%clk 0:01:14.4]} 27...
Nf7 {[%clk 0:00:50.2]} 28. a4 {[%clk 0:01:11.7]} 28... a6 {[%clk 0:00:49]} 29.
Kg2 {[%clk 0:01:11.2]} 29... Rh8 {[%clk 0:00:45.7]} 30. Rf3 {[%clk 0:01:07]}
30... Ng5 {[%clk 0:00:43.3]} 31. Rg3 {[%clk 0:01:06.7]} 31... Kf6 {[%clk
0:00:42.9]} 32. Be7+ {[%clk 0:00:37.9]} 32... Kxe7 {[%clk 0:00:42.7]} 33. Rxg5
{[%clk 0:00:38.5]} 33... Kf6 {[%clk 0:00:43.6]} 34. Rg3 {[%clk 0:00:38.9]} 34...
c5 {[%clk 0:00:42.9]} 35. Rf3+ {[%clk 0:00:39.1]} 35... Kg7 {[%clk 0:00:42.2]}
36. Kg3 {[%clk 0:00:39.5]} 36... a5 {[%clk 0:00:40.4]} 37. h4 {[%clk 0:00:38.9]}
37... Rh7 {[%clk 0:00:38.7]} 38. Kg4 {[%clk 0:00:39.2]} 38... Rh8 {[%clk
0:00:39]} 39. Kh3 {[%clk 0:00:36.8]} 39... Rh7 {[%clk 0:00:38.5]} 40. Rg3 {[%clk
0:00:36.2]} 40... Kf6 {[%clk 0:00:35.4]} 41. Rg5 {[%clk 0:00:36.1]} 41... Rh5
{[%clk 0:00:29.1]} 42. Kg4 {[%clk 0:00:28.2]} 42... Rh8 {[%clk 0:00:28.7]} 43.
h5 {[%clk 0:00:25.6]} 43... gxh5+ {[%clk 0:00:28.8]} 44. Rxh5 {[%clk 0:00:26.5]}
44... Rg8+ {[%clk 0:00:29.1]} 45. Kf3 {[%clk 0:00:27.1]} 45... Rg1 {[%clk
0:00:29]} 46. Rh6+ {[%clk 0:00:27.1]} 46... Kf7 {[%clk 0:00:28.1]} 47. Rc6
{[%clk 0:00:27.8]} 47... Rf1+ {[%clk 0:00:27.4]} 48. Kg4 {[%clk 0:00:27.7]} 1-0

[Event "Late-Titled-Tuesday-Blitz-June-25-2024"]
[Site "Chess.com"]
[Date "2024.06.25"]
[Round "5"]
[White "guillembaches"]
[Black "Alblooshi_Hamad"]
[Result "0-1"]
[WhiteElo "2532"]
[BlackElo "2315"]
[TimeControl "180+1"]
[EndTime "14:54:13 PDT"]
[Termination "Alblooshi_Hamad won on time"]

1. e4 {[%clk 0:03:00.9]} 1... e5 {[%clk 0:02:58.4]} 2. Nf3 {[%clk 0:03:00.6]}
2... Nc6 {[%clk 0:02:57.2]} 3. Nc3 {[%clk 0:03:00.9]} 3... Nf6 {[%clk
0:02:56.6]} 4. d4 {[%clk 0:03:01]} 4... exd4 {[%clk 0:02:57.5]} 5. Nxd4 {[%clk
0:03:01.2]} 5... Bb4 {[%clk 0:02:57.1]} 6. Nxc6 {[%clk 0:03:01.3]} 6... bxc6
{[%clk 0:02:57.7]} 7. Bd3 {[%clk 0:03:01.7]} 7... O-O {[%clk 0:02:56.2]} 8. O-O
{[%clk 0:03:01.7]} 8... d5 {[%clk 0:02:56.9]} 9. Bd2 {[%clk 0:03:01.9]} 9... d4
{[%clk 0:02:37.6]} 10. Ne2 {[%clk 0:02:58.6]} 10... Bxd2 {[%clk 0:02:38]} 11.
Qxd2 {[%clk 0:02:58.6]} 11... c5 {[%clk 0:02:38.5]} 12. b3 {[%clk 0:02:52.5]}
12... Re8 {[%clk 0:02:38.1]} 13. Ng3 {[%clk 0:02:48]} 13... Bb7 {[%clk 0:02:38]}
14. Rae1 {[%clk 0:02:46.9]} 14... a5 {[%clk 0:02:16.1]} 15. a4 {[%clk
0:02:45.9]} 15... Ba6 {[%clk 0:02:11.7]} 16. Qg5 {[%clk 0:02:24.8]} 16... Nd7
{[%clk 0:02:01.1]} 17. Qxd8 {[%clk 0:02:06.3]} 17... Rexd8 {[%clk 0:02:00.2]}
18. Bxa6 {[%clk 0:01:58.4]} 18... Rxa6 {[%clk 0:02:01.1]} 19. f4 {[%clk
0:01:58.6]} 19... Nf6 {[%clk 0:01:56.7]} 20. h3 {[%clk 0:01:52.5]} 20... g6
{[%clk 0:01:52.3]} 21. Rd1 {[%clk 0:01:43.6]} 21... c4 {[%clk 0:01:51.4]} 22.
bxc4 {[%clk 0:01:39.4]} 22... Rc6 {[%clk 0:01:50.6]} 23. e5 {[%clk 0:01:39.5]}
23... Ne8 {[%clk 0:01:38.3]} 24. c3 {[%clk 0:01:35.7]} 24... Rxc4 {[%clk
0:01:31.7]} 25. cxd4 {[%clk 0:01:33.8]} 25... Rcxd4 {[%clk 0:01:30.1]} 26. Rxd4
{[%clk 0:01:24.4]} 26... Rxd4 {[%clk 0:01:31]} 27. Rb1 {[%clk 0:01:08.6]} 27...
Kf8 {[%clk 0:01:17.5]} 28. f5 {[%clk 0:01:07.8]} 28... Rxa4 {[%clk 0:01:12.1]}
29. f6 {[%clk 0:01:03.2]} 29... Rb4 {[%clk 0:01:07]} 30. Rc1 {[%clk 0:00:42.8]}
30... a4 {[%clk 0:01:04.8]} 31. Rc6 {[%clk 0:00:42.7]} 31... Rb6 {[%clk
0:00:58.3]} 32. Rc2 {[%clk 0:00:41.6]} 32... a3 {[%clk 0:00:48.3]} 33. Ra2
{[%clk 0:00:41.2]} 33... Ra6 {[%clk 0:00:48.9]} 34. Ne4 {[%clk 0:00:41.6]} 34...
c6 {[%clk 0:00:47.3]} 35. Nc5 {[%clk 0:00:32]} 35... Ra5 {[%clk 0:00:45.9]} 36.
Nd7+ {[%clk 0:00:32.1]} 36... Kg8 {[%clk 0:00:45.4]} 37. Kf2 {[%clk 0:00:24.1]}
37... Nc7 {[%clk 0:00:45.3]} 38. Ke3 {[%clk 0:00:20.1]} 38... Nd5+ {[%clk
0:00:43.4]} 39. Kd4 {[%clk 0:00:20.2]} 39... Nb4 {[%clk 0:00:42.9]} 40. Rf2
{[%clk 0:00:10.6]} 40... a2 {[%clk 0:00:42.1]} 41. e6 {[%clk 0:00:11]} 41...
a1=Q+ {[%clk 0:00:41.8]} 0-1